bitfinex-derivatives/quotes_ETHF0:USTF0_20251005
["timestamp","ask_amount","ask_price","bid_price","bid_amount"]
[1759683057048,3.20992255,4511.1,4510.5,1.2816]
[1759683057446,0.0784,4510.5,4510.0,0.3478]
[1759683057646,3.2078,4510.1,4509.6,0.9338]
[1759683057856,3.2078,4510.1,4510.0,1.2816]
[1759683058556,3.2078,4510.1,4510.0,0.9338]
[1759683058753,0.39899,4510.0,4509.6,0.9338]
[1759683058951,3.2078,4510.1,4509.6,0.9338]
[1759683059166,3.2078,4510.1,4510.0,1.2816]
[1759683059550,3.2078,4510.7,4510.6,0.9338]
[1759683059954,0.00212255,4511.1,4510.6,0.9338]
[1759683060157,3.2078,4512.2,4512.1,0.9338]
[1759683061056,3.2078,4513.0,4512.6,0.9338]
[1759683061255,0.00158827,4513.0,4512.6,0.9338]
[1759683061452,0.0784,4512.9,4512.5,0.9338]
[1759683061654,0.0784,4512.9,4512.1,0.00205093]
[1759683061655,0.39875,4512.7,4512.1,0.00205093]
[1759683061854,3.2078,4512.2,4512.1,0.93585093]
[1759683062055,3.5412,4512.2,4512.1,0.3103389]
[1759683062364,3.5412,4512.2,4510.6,0.9338]
[1759683062365,0.39892,4510.9,4510.6,0.9338]
[1759683062657,0.39892,4510.8,4510.6,0.9338]
[1759683062861,3.5412,4510.7,4510.1,0.9338]
[1759683063057,3.4628,4510.7,4510.1,0.9338]
[1759683063364,3.2078,4510.7,4510.6,0.9338]
[1759683063559,1.64438539,4511.9,4510.7,0.9338]
[1759683063560,3.2078,4511.2,4510.7,0.9338]
[1759683063857,3.2078,4511.2,4510.6,0.9338]
[1759683064061,3.2078,4511.2,4510.5,0.3478]
[1759683064062,3.2078,4511.2,4511.1,0.9338]
[1759683064260,3.2078,4511.7,4511.6,0.9338]
[1759683064457,3.79533949,4511.7,4509.5,0.3478]
[1759683064654,4.1386,4511.1,4510.3,0.9338]
[1759683064959,0.58753949,4511.0,4510.6,0.9338]
[1759683065158,0.39885,4511.6,4510.6,0.9338]
[1759683065159,0.58745714,4510.9,4510.6,0.9338]
[1759683065355,0.58745714,4510.8,4510.6,0.9338]
[1759683065553,0.58745714,4510.8,4509.5,0.3478]
[1759683065554,4.1386,4511.1,4510.0,3.5556]
[1759683065761,0.9308,4510.7,4510.0,3.5556]
[1759683065960,0.58741063,4510.6,4510.5,0.3478]
[1759683066264,1.51821063,4510.6,4510.0,3.5556]
[1759683066461,0.9308,4510.4,4510.0,3.5556]
[1759683066659,0.58741063,4510.3,4510.2,0.9338]
[1759683067253,1.1848,4511.0,4510.2,0.9338]
[1759683067463,0.58732101,4510.9,4510.2,0.9338]
[1759683067665,0.58732101,4510.8,4510.2,0.9338]
[1759683067866,0.9308,4510.6,4510.2,0.9338]
[1759683068160,3.60675,4510.4,4509.7,0.9338]
[1759683068370,0.9308,4510.2,4509.7,0.9338]
[1759683068668,1.51812101,4510.2,4509.4,3.2078]
[1759683069261,0.58732101,4510.2,4510.1,0.93664822]
[1759683069468,0.84132101,4510.2,4510.1,0.93664822]
[1759683069866,2.17109101,4510.2,4510.1,0.00284822]
[1759683070064,1.32984,4509.4,4509.0,0.3478]
[1759683070264,0.58704619,4509.3,4508.9,0.9338]
[1759683070563,0.58704619,4509.2,4508.6,0.9338]
[1759683070760,0.253,4509.4,4507.5,0.3478]
[1759683070761,0.58704619,4509.1,4507.5,3.5556]
[1759683070959,0.3738,4505.5,4503.9,2.77228953]
[1759683071167,0.39958,4503.4,4501.9,3.2078]
[1759683071364,0.58568417,4503.3,4501.5,0.3478]
[1759683071568,0.80868417,4503.2,4501.0,0.3478]
[1759683071766,3.2078,4501.9,4500.5,0.3478]
[1759683071963,3.2078,4500.6,4499.5,0.3478]
[1759683072266,3.2078,4500.0,4499.6,0.3478]
[1759683072457,0.39993,4499.5,4498.9,0.3478]
[1759683072658,3.2078,4499.0,4498.9,0.3478]
[1759683072859,3.2078,4500.1,4500.0,0.3478]
[1759683073066,3.20985497,4500.6,4500.1,0.9338]
[1759683073368,3.60967497,4500.6,4500.0,0.3478]
[1759683073570,0.39996,4499.1,4498.9,0.3478]
[1759683073771,3.2078,4499.0,4498.9,1.28374557]
[1759683074366,3.2078,4499.7,4498.2,0.3478]
[1759683074564,3.2078,4498.8,4498.4,0.3478]
[1759683074869,1.03300841,4499.6,4499.2,0.3478]
[1759683075066,5.0,4499.1,4497.6,0.3478]
[1759683075369,0.00205497,4500.6,4497.6,0.00200904]
[1759683075370,0.9308,4497.8,4497.6,0.00200904]
[1759683075674,0.9308,4497.8,4494.9,0.47266251]
[1759683075675,0.9308,4495.5,4492.3,0.18046836]
[1759683075877,3.2078,4494.0,4492.5,0.40054]
[1759683076166,3.2078,4494.0,4491.5,10.01573]
[1759683076167,0.3738,4495.2,4495.0,0.40031]
[1759683076370,0.3738,4496.0,4495.0,3.2078]
[1759683076573,0.29614335,4496.0,4495.8,3.2078]
[1759683076761,0.9308,4495.9,4495.8,3.60804]
[1759683076963,0.3738,4498.2,4495.9,5.0]
[1759683077263,3.2078,4499.0,4497.0,3.2078]
[1759683077467,3.2078,4499.2,4497.1,3.2078]
[1759683077769,3.2078,4499.9,4498.1,3.2078]
[1759683077976,3.5816,4500.9,4499.4,0.39992]
[1759683078268,3.5816,4500.9,4499.0,40.8]
[1759683078269,1.29727086,4500.6,4499.6,3.2078]
[1759683078468,0.3525,4499.1,4499.0,40.8]
[1759683078663,0.3525,4499.1,4499.0,41.056]
[1759683078867,3.5816,4500.9,4500.2,0.39985]
[1759683079064,1.29727086,4499.5,4499.0,40.8]
[1759683079270,1.5106,4499.1,4499.0,40.8]
[1759683079464,1.5106,4499.1,4499.0,41.056]
[1759683079869,0.3525,4500.0,4499.0,40.8]
[1759683080170,0.3525,4499.1,4499.0,40.80204872]
[1759683080367,3.58315906,4500.9,4499.2,9.99859]
[1759683080568,3.2078,4501.5,4500.4,3.2078]
[1759683080875,0.3525,4500.0,4499.9,0.256]
[1759683081069,1.64977086,4500.0,4499.9,0.256]
[1759683081366,1.64977086,4500.0,4499.0,44.00984872]
[1759683081367,1.64977086,4500.0,4499.5,0.256]
[1759683081573,1.29727086,4499.6,4499.5,0.256]
[1759683081770,0.35462451,4500.0,4498.5,1.91257786]
[1759683081771,1.5106,4499.1,4498.5,1.91257786]
[1759683081973,3.2078,4498.7,4497.5,3.6079]
[1759683082168,1.1581,4498.1,4498.0,40.8]
[1759683082362,1.1581,4498.8,4498.4,0.40001]
[1759683082571,1.1581,4498.8,4498.0,41.20005]
[1759683082768,1.5106,4499.1,4498.0,44.0078]
[1759683082972,0.3525,4499.1,4498.0,44.01051417]
[1759683083174,1.1581,4498.1,4498.0,40.80271417]
[1759683083471,1.1581,4499.0,4498.0,40.80271417]
[1759683083768,1.1581,4499.0,4498.3,0.40002]
[1759683083972,0.35462451,4500.0,4498.7,3.2078]
[1759683084174,1.1581,4499.9,4498.8,0.255]
[1759683084365,1.1581,4499.9,4499.7,0.3999]
[1759683084568,1.1581,4500.8,4499.8,0.256]
[1759683084770,1.1581,4500.8,4500.5,0.39982]
[1759683084970,3.2078,4501.3,4501.1,0.39978]
[1759683085166,4.7184,4501.8,4501.5,0.39974]
[1759683085475,4.3659,4502.9,4501.7,3.2078]
[1759683085665,0.35425003,4502.7,4501.7,3.20941003]
[1759683085865,0.35425003,4502.7,4502.2,0.39968]
[1759683086073,0.35425003,4502.7,4501.7,3.20941003]
[1759683086074,1.1581,4502.6,4502.3,40.8]
[1759683086271,1.5106,4501.8,4501.7,0.00161003]
[1759683086475,4.7184,4501.8,4501.7,0.00161003]
[1759683086682,3.5603,4501.8,4501.7,0.00161003]
[1759683086872,4.7184,4501.8,4501.7,0.00161003]
[1759683087379,4.7184,4501.8,4501.7,40.80161003]
[1759683087681,4.7184,4501.8,4501.7,41.05761003]
[1759683087866,8.5603,4501.8,4500.3,3.2078]
[1759683088067,1.1581,4501.7,4500.6,0.39982]
[1759683088271,1.1581,4500.7,4500.6,0.39982]
[1759683088571,1.1581,4500.7,4500.3,3.2078]
[1759683088877,0.3525,4500.8,4500.4,41.056]
[1759683089074,1.1581,4500.7,4500.4,40.8]
[1759683089274,1.1581,4500.7,4500.5,0.256]
[1759683089476,3.5603,4501.8,4501.2,0.39977]
[1759683089772,0.75209,4503.2,4501.2,0.39977]
[1759683089773,3.2078,4502.3,4502.2,0.39968]
[1759683090071,4.3659,4502.3,4502.2,41.45568]
[1759683090474,1.1581,4502.3,4502.2,41.45568]
[1759683090672,0.00175003,4502.7,4502.6,0.39964]
[1759683090976,0.3525,4503.2,4503.0,0.3996]
[1759683091172,1.5106,4504.0,4503.1,0.256]
[1759683091569,0.3525,4504.0,4503.8,0.39953]
[1759683091878,1.1581,4503.9,4503.8,0.00200729]
[1759683092074,1.1581,4503.9,4503.8,0.65654729]
[1759683092277,0.35446683,4504.0,4503.8,0.65654729]
[1759683092278,0.00196683,4504.0,4503.8,0.65654729]
[1759683092479,1.115,4503.9,4503.8,0.00200729]
[1759683092883,1.115,4503.9,4503.8,40.80200729]
[1759683093173,1.115,4503.9,4503.8,0.00200729]
[1759683093482,6.115,4503.9,4503.8,0.00200729]
[1759683094178,1.115,4503.9,4503.8,0.00200729]
[1759683095670,0.00196683,4504.0,4503.9,0.39953]
[1759683096077,3.2078,4504.7,4504.1,0.99877]
[1759683096276,3.2078,4504.7,4504.6,0.39947]
[1759683096472,4.3228,4504.7,4504.6,0.65447]
[1759683096679,1.115,4505.4,4505.3,0.3994]
[1759683096879,1.115,4505.4,4505.3,3.8612]
[1759683097083,0.00216955,4505.4,4505.3,3.4618]
[1759683097279,1.115,4506.3,4506.2,0.39932]
[1759683097480,1.115,4506.3,4506.2,0.65332]
[1759683097874,3.6791,4507.3,4506.2,0.65332]
[1759683097875,1.115,4507.2,4506.5,0.39929]
[1759683098071,3.6791,4507.3,4506.8,0.39926]
[1759683098287,1.115,4507.2,4506.9,0.254]
[1759683098479,1.115,4507.2,4506.7,0.39927]
[1759683098784,1.115,4507.2,4507.0,0.254]
[1759683099084,0.47369476,4507.3,4507.0,0.25645327]
[1759683099273,1.115,4507.2,4507.0,0.25645327]
[1759683099471,1.115,4507.2,4507.0,0.00245327]
[1759683099871,1.115,4506.5,4506.4,0.57631]
[1759683100278,1.115,4506.5,4506.4,40.977]
[1759683100470,1.115,4506.5,4506.4,40.8]
[1759683100677,1.115,4506.5,4506.4,41.054]
[1759683100981,1.115,4506.5,4506.4,41.05638238]
[1759683101978,1.115,4506.5,4506.4,0.00238238]
[1759683102686,1.115,4506.5,4506.4,0.25538238]
[1759683103077,1.115,4506.5,4506.4,0.00238238]
[1759683103281,1.115,4506.5,4506.4,0.25538238]
[1759683104678,1.115,4506.5,4506.4,3.46318238]
[1759683104878,3.2078,4507.1,4506.5,0.3993]
[1759683105078,4.3228,4507.1,4507.0,0.39925]
[1759683105281,4.3228,4507.1,4507.0,0.65225]
[1759683105476,4.3228,4507.1,4506.5,0.3993]
[1759683105477,0.4713,4506.6,4505.4,3.2078]
[1759683105681,1.115,4505.8,4505.7,0.39937]
[1759683106586,1.115,4505.8,4505.7,0.40120447]
[1759683106984,1.115,4505.8,4505.7,0.00183447]
[1759683108184,1.1807,4506.5,4506.4,0.3993]
[1759683108577,0.4713,4506.6,4506.0,3.4598]
[1759683108880,1.1807,4506.5,4506.4,0.39931]
[1759683109081,1.1807,4507.1,4507.0,0.39925]
[1759683109688,0.00239476,4507.3,4507.2,0.39924]
[1759683110384,3.2078,4508.8,4508.7,0.3991]
[1759683110583,3.74555132,4508.8,4507.3,4.20586]
[1759683110780,0.53767829,4508.7,4508.5,0.39912]
[1759683110980,0.53767829,4508.7,4506.7,1.99639]
[1759683110981,3.2078,4508.8,4508.6,0.252]
[1759683111290,3.2078,4509.3,4509.2,0.39906]
[1759683111492,3.2078,4509.3,4509.2,0.65106]
[1759683111787,4.3885,4509.3,4509.2,0.65106]
[1759683112087,3.2078,4509.3,4509.2,6.72216]
[1759683112291,4.3885,4510.0,4509.9,0.399]
[1759683112585,0.00255965,4510.0,4509.9,0.651]
[1759683112987,1.1807,4509.9,4509.8,0.399]
[1759683113293,1.1807,4509.9,4509.8,0.65]
[1759683113785,1.1807,4509.9,4509.6,3.2078]
[1759683113992,1.1807,4509.9,4509.8,0.399]
[1759683115093,0.00255965,4510.0,4509.8,0.399]
[1759683115483,1.18325965,4510.0,4509.8,0.399]
[1759683116090,0.00255965,4510.0,4509.6,3.2078]
[1759683116284,1.1807,4509.9,4509.6,3.2078]
[1759683116486,0.00255965,4510.0,4509.2,0.00217087]
[1759683116487,0.456,4509.4,4509.2,0.00217087]
[1759683116682,1.1807,4509.3,4509.2,0.00217087]
[1759683116885,6.1807,4509.3,4509.2,0.00217087]
[1759683117088,1.1807,4509.3,4509.2,0.00217087]
[1759683117286,1.1807,4509.3,4509.2,0.40123087]
[1759683117783,1.1807,4509.9,4509.8,0.39901]
[1759683118183,0.00255965,4510.0,4509.8,1.47011]
[1759683118385,9.65e-06,4510.0,4509.9,1.0711]
[1759683118581,9.65e-06,4510.0,4509.8,0.39901]
[1759683118788,9.65e-06,4510.0,4509.9,0.251]
[1759683118982,9.65e-06,4510.0,4509.9,1.3221]
[1759683119385,9.65e-06,4510.0,4509.9,1.0711]
[1759683119585,9.65e-06,4510.0,4509.9,1.3221]
[1759683119981,1.1807,4511.7,4510.1,9.97454]
[1759683120184,3.2078,4512.1,4511.2,3.2078]
[1759683120386,1.1807,4512.0,4511.5,0.39885]
[1759683120795,3.2078,4512.1,4511.5,0.39885]
[1759683120987,3.20945158,4512.1,4511.2,3.2078]
[1759683121290,3.20945158,4512.1,4509.3,1.99524]
[1759683121291,0.456,4511.5,4509.5,3.2078]
[1759683121592,0.456,4510.1,4510.0,0.39899]
[1759683121787,3.2078,4510.5,4510.3,0.39896]
[1759683121988,1.1807,4511.4,4510.4,3.4578]
[1759683122186,3.2078,4511.6,4509.4,3.2078]
[1759683122187,1.1807,4510.0,4509.4,3.2078]
[1759683122388,0.456,4510.1,4509.9,0.39899]
[1759683122687,1.1807,4510.0,4509.5,0.39903]
[1759683122891,1.1807,4510.7,4509.4,3.2078]
[1759683123092,0.456,4510.1,4509.8,0.399]
[1759683123293,0.456,4510.1,4509.4,3.2078]
[1759683123294,1.1807,4510.0,4509.7,0.39901]
[1759683123485,1.1807,4510.0,4509.9,0.399]
[1759683123792,0.456,4510.1,4509.6,0.25]
[1759683123991,0.456,4510.1,4509.8,0.399]
[1759683124192,1.1807,4509.9,4509.8,0.399]
[1759683124491,1.1807,4509.9,4509.8,0.25]
[1759683124691,0.456,4510.1,4509.8,0.25]
[1759683124888,1.1807,4509.9,4509.8,0.25]
[1759683125088,1.69396372,4509.9,4509.8,0.25]
[1759683125285,5.51326372,4509.9,4509.4,3.2078]
[1759683125588,3.2078,4509.6,4509.2,0.00217087]
[1759683125791,0.456,4509.4,4507.4,1.0711]
[1759683125990,0.456,4509.0,4508.3,3.2078]
[1759683126195,1.6367,4508.4,4508.3,3.2078]
[1759683126394,2.14996372,4508.4,4508.3,3.2078]
[1759683126994,2.15212655,4508.4,4508.3,0.00237959]
[1759683127795,0.51542655,4508.4,4508.3,3.21017959]
[1759683127992,0.00216283,4508.4,4508.3,3.21017959]
[1759683128491,0.51569878,4508.4,4508.3,4.28127959]
[1759683128694,4.3885,4509.6,4509.5,0.39903]
[1759683128886,1.69435408,4509.6,4509.5,0.39903]
[1759683129199,0.51365408,4509.6,4509.5,0.39903]
[1759683129586,1.1807,4510.2,4510.0,0.39899]
[1759683129791,1.69651484,4510.1,4510.0,3.60679]
[1759683129989,1.69651484,4510.1,4510.0,3.2078]
[1759683130188,0.51581484,4510.1,4510.0,3.2078]
[1759683130592,0.00259464,4510.1,4510.0,3.2078]
[1759683132992,0.00259464,4510.1,4510.0,4.92689]
[1759683133190,0.00259464,4510.1,4510.0,9.92689]
[1759683133396,1.1807,4511.3,4510.3,0.99741]
[1759683133691,3.6638,4511.4,4510.0,9.2789]
[1759683133692,1.1807,4511.1,4510.7,3.2078]
[1759683133894,3.6638,4511.4,4510.8,0.249]
[1759683133895,1.1807,4510.9,4510.8,0.249]
[1759683134091,1.6367,4510.8,4510.7,3.2078]
[1759683134290,1.1807,4510.7,4510.4,0.248]
[1759683134485,0.51202234,4510.6,4510.1,3.2078]
[1759683134691,1.1807,4510.4,4510.1,3.4558]
[1759683134893,0.51202234,4510.3,4510.1,3.4558]
[1759683135096,1.69272234,4510.2,4510.1,3.4558]
[1759683135487,0.51202234,4510.2,4510.1,3.4558]
[1759683135687,0.50664347,4510.2,4510.1,9.5269]
[1759683135891,0.00273224,4510.8,4510.7,1.47003]
[1759683136092,0.00273224,4510.8,4510.7,4.92583]
[1759683137499,1.1449,4512.4,4511.8,1.0731]
[1759683137697,0.456,4512.6,4512.0,3.2078]
[1759683137997,0.4521,4512.0,4511.2,3.2078]
[1759683138201,1.1449,4511.9,4511.3,0.248]
[1759683138502,1.14707723,4511.9,4511.3,0.00259112]
[1759683138702,1.1449,4511.8,4511.4,0.64686]
[1759683139000,0.00217723,4511.9,4511.6,0.39884]
[1759683139302,1.1449,4511.8,4511.7,0.248]
[1759683139905,1.1449,4511.8,4511.7,0.64684]
[1759683140203,1.1449,4511.8,4511.7,0.248]
[1759683140696,1.14707723,4511.9,4511.3,0.00259112]
[1759683140898,1.14707723,4511.9,4511.7,0.39884]
[1759683141203,0.00217723,4511.9,4511.8,1.3201]
[1759683142996,0.00217723,4511.9,4511.8,1.0731]
[1759683143197,0.022,4512.9,4511.9,0.99706]
[1759683143396,1.1669,4512.9,4512.8,3.2078]
[1759683143592,1.1669,4512.9,4512.8,3.4548]
[1759683143798,1.1669,4512.9,4512.8,3.2078]
[1759683143994,1.1669,4512.9,4512.8,0.247]
[1759683144199,1.16904656,4512.9,4512.8,0.247]
[1759683145097,1.1449,4512.8,4512.2,3.2078]
[1759683145400,0.02414656,4512.9,4512.8,0.39874]
[1759683145699,0.02414656,4512.9,4512.8,1.71884]
[1759683146099,0.4521,4514.5,4513.1,1.0489]
[1759683146297,1.1449,4514.4,4513.8,0.39864]
[1759683146600,0.4521,4515.0,4514.1,3.2078]
[1759683146804,3.2078,4515.3,4514.9,0.39855]
[1759683146996,1.1449,4515.2,4515.0,0.247]
[1759683147199,1.1449,4515.2,4515.1,0.39854]
[1759683147392,1.1449,4515.2,4515.1,3.60634]
[1759683147596,1.1449,4515.2,4515.1,3.2078]
[1759683147796,0.0022862,4515.3,4515.2,1.0489]
[1759683147996,0.0022862,4515.3,4515.2,0.39853]
[1759683148197,0.0022862,4515.3,4515.1,3.4548]
[1759683148198,0.0022862,4515.3,4515.1,3.2078]
[1759683148402,0.0022862,4515.3,4515.2,0.248]
[1759683148701,0.0022862,4515.3,4515.2,1.2969]
[1759683148896,3.2078,4516.6,4515.3,1.0466]
[1759683149093,3.2078,4516.6,4516.3,0.39843]
[1759683149300,1.1449,4517.1,4516.5,3.2078]
[1759683149506,1.54326,4517.2,4516.0,3.2078]
[1759683149698,0.39837,4517.0,4516.0,3.2078]
[1759683149997,1.1449,4516.1,4515.4,3.2078]
[1759683150204,0.4521,4516.2,4515.4,3.2078]
[1759683150205,1.1449,4515.9,4515.4,3.2078]
[1759683150402,1.597,4515.6,4515.5,0.253]
[1759683150604,1.597,4515.0,4514.8,3.2078]
[1759683150806,1.597,4515.0,4514.9,0.25486261]
[1759683151205,1.597,4515.0,4514.9,0.00186261]
[1759683151407,1.1449,4515.0,4514.9,0.25486261]
[1759683151609,1.597,4515.0,4514.9,0.25486261]
[1759683151812,6.597,4515.0,4514.9,0.25486261]
[1759683152503,6.597,4515.0,4514.9,0.00186261]
[1759683153107,6.99555,4515.0,4514.9,0.00186261]
[1759683154708,6.597,4515.0,4514.9,0.00186261]
[1759683155708,1.597,4515.0,4514.9,0.00186261]
[1759683156512,1.1449,4515.0,4514.9,0.25386261]
[1759683157517,1.5657,4515.6,4515.0,0.39855]
[1759683157708,1.5657,4515.6,4515.2,0.39852]
[1759683157909,1.1136,4515.5,4514.9,0.25386261]
[1759683158109,1.1136,4515.5,4515.4,0.39851]
[1759683158308,1.1136,4515.8,4515.7,0.39848]
[1759683158514,3.2078,4517.1,4515.8,1.0283]
[1759683158811,1.1136,4516.9,4516.1,0.39845]
[1759683159010,3.2078,4517.1,4515.9,0.252]
[1759683159213,1.1136,4516.9,4516.0,0.39845]
[1759683159412,1.1136,4516.9,4515.9,0.252]
[1759683159413,1.1136,4516.9,4516.1,0.39845]
[1759683159611,1.1136,4516.9,4516.3,0.39843]
[1759683159806,1.1136,4516.9,4515.9,0.65046]
[1759683160018,1.1136,4516.9,4516.3,3.2078]
[1759683160414,1.1136,4516.9,4515.0,0.2419]
[1759683160415,0.87102,4516.5,4515.1,3.2078]
[1759683160620,1.1136,4515.9,4515.1,3.60633]
[1759683160919,1.1136,4515.9,4515.2,0.251]
[1759683161112,1.1136,4515.9,4515.6,3.60629]
[1759683161313,0.4726,4516.5,4515.6,3.2078]
[1759683161514,0.4726,4516.5,4515.7,0.251]
[1759683161716,3.2078,4516.1,4515.1,3.2078]
[1759683162014,1.1136,4515.4,4515.2,0.251]
[1759683162214,0.4726,4515.5,4515.3,0.251]
[1759683162414,1.1136,4516.4,4515.3,1.2793]
[1759683162609,1.1136,4516.4,4515.6,3.2078]
[1759683162807,0.4726,4516.0,4515.1,3.2078]
[1759683163011,1.1136,4515.9,4515.2,0.251]
[1759683163213,1.51207,4515.9,4515.2,0.251]
[1759683163417,1.1136,4515.9,4515.1,3.2078]
[1759683163612,1.1136,4515.4,4515.2,0.251]
[1759683163818,0.39852,4515.4,4515.2,0.251]
[1759683164020,1.1136,4515.3,4515.2,0.251]
[1759683165019,0.4726,4516.0,4515.2,0.251]
[1759683165020,4.3214,4516.2,4515.2,8.2078]
[1759683165218,4.3214,4516.2,4515.3,0.251]
[1759683165520,3.2078,4516.2,4515.8,0.39847]
[1759683165726,1.1136,4516.1,4516.0,0.39846]
[1759683165929,1.1136,4516.1,4516.0,0.64946]
[1759683166120,1.1136,4516.4,4516.2,0.39844]
[1759683166824,1.1136,4516.8,4516.7,0.39839]
[1759683167024,1.1136,4516.8,4516.7,0.64939]
[1759683167222,0.00228438,4517.0,4516.9,0.39838]
[1759683167527,0.00228438,4517.0,4516.9,1.40558]
[1759683167918,4.38e-06,4517.0,4516.9,6.40558]
[1759683168426,0.022,4517.9,4517.7,0.39831]
[1759683168720,0.022,4517.9,4517.0,1.2491]
[1759683168721,1.0869,4517.9,4517.8,0.25]
[1759683168923,0.022,4517.9,4517.8,0.25]
[1759683169120,0.022,4517.9,4517.7,0.25]
[1759683169121,1.0649,4517.8,4517.7,0.25]
[1759683169425,3.2078,4518.3,4517.7,0.25]
[1759683169426,0.4379,4518.0,4517.8,0.3983]
[1759683169724,1.5028,4518.0,4517.9,0.251]
[1759683170515,1.5045166,4518.0,4517.9,0.251]
[1759683170721,0.4396166,4518.0,4517.7,3.2078]
[1759683171026,1.0649,4517.9,4517.8,0.25]
[1759683171421,1.0649,4517.9,4517.7,3.2078]
[1759683171620,1.0649,4517.9,4517.8,0.25]
[1759683172114,1.0649,4517.7,4516.6,3.2078]
[1759683172318,0.4379,4516.5,4516.4,0.25]
[1759683172519,1.5028,4516.5,4516.4,0.25]
[1759683173319,0.99578,4517.7,4516.4,0.25]
[1759683173320,0.0017166,4518.0,4516.4,5.25]
[1759683173527,0.0017166,4518.0,4517.9,3.2078]
[1759683173528,1.5045166,4518.0,4517.9,3.2078]
[1759683173727,1.5045166,4518.0,4517.9,3.4578]
[1759683174724,1.5045166,4518.0,4517.9,3.2078]
[1759683175028,1.5045166,4518.0,4517.4,0.39833]
[1759683175029,0.4379,4517.5,4517.4,0.39833]
[1759683175228,0.4379,4517.5,4517.4,3.4578]
[1759683175823,1.5028,4517.5,4517.4,8.4578]
[1759683176220,1.5028,4517.5,4517.4,3.4578]
[1759683176724,1.5028,4517.5,4517.4,3.2078]
[1759683176924,0.4379,4517.0,4516.9,3.60617]
[1759683177124,1.5028,4517.0,4516.9,3.85617]
[1759683177525,1.5028,4517.0,4516.9,3.2078]
[1759683177832,1.5028,4517.0,4516.9,3.4578]
[1759683179928,0.4379,4516.5,4516.4,3.2078]
[1759683180235,1.5028,4516.5,4516.4,3.2078]
[1759683180530,0.4379,4515.5,4514.9,3.20966261]
[1759683180735,0.4379,4515.0,4514.9,3.20966261]
[1759683181029,1.5028,4515.0,4514.9,0.25086261]
[1759683181628,1.5028,4515.0,4514.9,0.00186261]
[1759683181826,1.5028,4515.0,4514.9,0.25086261]
[1759683182032,1.90135,4515.0,4514.9,0.25086261]
[1759683182226,1.5028,4515.0,4514.9,0.25086261]
[1759683182426,1.5028,4515.0,4514.9,0.64942261]
[1759683182632,1.5028,4515.0,4514.9,0.00186261]
[1759683182833,1.5028,4515.0,4514.9,0.25086261]
[1759683183035,1.5028,4515.0,4514.9,0.00186261]
[1759683183531,1.5028,4515.0,4514.9,0.25086261]
[1759683184926,1.5028,4515.0,4514.9,0.64942261]
[1759683185735,1.5028,4515.5,4515.4,0.39851]
[1759683185933,1.5028,4515.5,4515.4,0.64751]
[1759683186233,1.0649,4515.9,4515.4,8.4568]
[1759683186431,0.4379,4516.0,4515.8,0.39848]
[1759683186741,1.0649,4516.4,4516.3,0.39843]
[1759683186932,1.0649,4516.4,4516.3,0.64743]
[1759683188039,1.0649,4516.9,4516.3,5.249]
[1759683188236,1.0649,4516.9,4516.8,0.39839]
[1759683188430,1.0649,4516.9,4516.8,0.64639]
[1759683188829,1.0649,4516.9,4516.8,5.64639]
[1759683189034,1.0649,4517.7,4516.9,0.39838]
[1759683189234,1.0649,4517.7,4517.6,3.60612]
[1759683189544,1.0649,4517.7,4517.6,0.64632]
[1759683190232,0.4396166,4518.0,4517.6,0.64632]
[1759683190233,1.5045166,4518.0,4517.9,0.39829]
[1759683191039,0.0017166,4518.0,4517.9,5.39829]
[1759683191536,1.0649,4518.6,4517.9,5.39829]
[1759683191840,1.5028,4519.0,4518.4,3.60604]
[1759683192033,1.0649,4518.9,4518.5,0.248]
[1759683192537,1.5028,4518.0,4517.9,3.2078]
[1759683192839,1.5028,4518.0,4517.9,0.00258319]
[1759683193042,1.5028,4518.0,4517.9,0.25058319]
[1759683193640,0.4379,4518.0,4517.9,0.25058319]
[1759683193841,1.0649,4518.4,4518.2,0.39826]
[1759683194147,1.0649,4518.4,4518.3,0.247]
[1759683194735,1.0649,4518.4,4518.3,0.64526]
[1759683195538,1.0649,4518.4,4518.3,0.247]
[1759683196037,1.0649,4518.4,4518.3,3.4548]
[1759683197043,1.0649,4518.4,4518.3,3.2078]
[1759683197244,1.5028,4518.0,4517.9,0.40087319]
[1759683197447,1.6094,4518.5,4518.4,0.39825]
[1759683197641,1.6094,4518.5,4518.4,3.85305]
[1759683198036,1.6094,4518.5,4517.9,40.80258319]
[1759683198242,1.1715,4518.4,4518.1,0.39827]
[1759683198946,1.1715,4518.4,4518.0,0.247]
[1759683199249,0.4379,4518.5,4518.0,0.247]
[1759683199448,1.1715,4518.4,4518.3,0.39826]
[1759683199642,1.1715,4518.4,4518.3,0.64426]
[1759683200345,1.1715,4518.4,4518.2,3.2078]
[1759683200539,1.1715,4518.4,4518.3,0.246]
[1759683201139,0.4379,4518.5,4518.2,3.2078]
[1759683201343,1.1715,4518.4,4518.3,0.246]
[1759683202049,1.1715,4518.4,4517.9,0.00258319]
[1759683202050,1.1715,4518.4,4518.2,0.39826]
[1759683202250,1.1715,4518.4,4518.3,0.246]
[1759683203044,1.1715,4518.4,4518.2,3.60606]
[1759683203045,1.1715,4518.4,4517.9,0.00258319]
[1759683203341,1.6045,4518.0,4517.9,0.00258319]
[1759683203548,1.6045,4518.0,4517.9,0.24858319]
[1759683204651,1.6045,4518.0,4517.9,0.00258319]
[1759683204852,1.6045,4518.0,4517.9,0.24858319]
[1759683205449,1.6045,4518.0,4517.9,0.00258319]
[1759683205649,1.6045,4518.0,4517.9,0.24858319]